fUSD/lending_fUSD_20250201
["ID","MTS","AMOUNT","RATE_DAILY","PERIOD"]
[351189222,1738403432370,-214.92915692,0.00013111,2]
[351189223,1738403432379,-150.0,0.0001317,2]
[351189224,1738403432389,-500.0,0.00013425,2]
[351189225,1738403432398,-150.0,0.000137,2]
[351189226,1738403432407,-150.0,0.00013764,2]
[351189227,1738403432417,-500.0,0.00013781,2]
[351189228,1738403432428,-150.0,0.00014274,2]
[351189229,1738403432438,-150.0,0.00014288,2]
[351189230,1738403432447,-1000.0,0.0001449,2]
[351189231,1738403432457,-166.44,0.00014526,2]
[351189232,1738403432466,-1535.35,0.0001471,2]
[351189233,1738403432475,-150.0,0.00014989,2]
[351189234,1738403432485,-600.0,0.00015,2]
[351189235,1738403432495,-150.0,0.00015094,2]
[351189236,1738403432504,-162.89,0.00015118,2]
[351189237,1738403432514,-21833.334186,0.00015184,2]
[351189238,1738403432523,-150.0,0.00015261,2]
[351189239,1738403432532,-150.0,0.00015298,2]
[351189240,1738403432542,-582.5,0.00015375,2]
[351189241,1738403432551,-150.0,0.00015543,2]
[351189242,1738403432560,-14598.90213084,0.00015579,2]
[351189243,1738403432570,-300.25,0.00015664,2]
[351189244,1738403432580,-150.0,0.00015722,2]
[351189245,1738403432589,-150.0,0.00015843,2]
[351189246,1738403432599,-1000.0,0.00016301,2]
[351189247,1738403432609,-11146.78095828,0.00016338,2]
[351189248,1738403432619,-263.93,0.00016428,2]
[351189249,1738403432628,-500.0,0.00016438,2]
[351189250,1738403432637,-500.0,0.00016438,2]
[351189251,1738403432647,-500.0,0.00016438,2]
[351189252,1738403432657,-500.0,0.00016438,2]
[351189253,1738403432666,-500.0,0.00016438,2]
[351189254,1738403432678,-500.0,0.00016438,2]
[351189255,1738403432688,-500.0,0.00016438,2]
[351189256,1738403432697,-500.0,0.00016438,2]
[351189257,1738403432707,-500.0,0.00016438,2]
[351189258,1738403432717,-603.44,0.00016438,2]
[351189259,1738403432727,-616.2,0.00016438,2]
[351189260,1738403432736,-500.0,0.00016438,2]
[351189261,1738403432746,-548.74516425,0.00016438,2]
[351189262,1738403432755,-500.0,0.00016438,2]
[351189263,1738403432764,-500.0,0.00016438,2]
[351189264,1738403432774,-500.0,0.00016438,2]
[351189265,1738403432783,-500.0,0.00016438,2]
[351189266,1738403432793,-500.0,0.00016438,2]
[351189267,1738403432802,-500.0,0.00016438,2]
[351189268,1738403432811,-500.0,0.00016438,2]
[351189269,1738403432821,-614.05,0.00016438,2]
[351189270,1738403432830,-500.0,0.00016438,2]
[351189271,1738403432840,-500.0,0.00016438,2]
[351189272,1738403432850,-500.0,0.00016438,2]
[351189273,1738403432859,-500.0,0.00016438,2]
[351189274,1738403432869,-434.14563566,0.00016438,2]
[351189275,1738403432879,-502.8969672,0.00016438,2]
[351189276,1738403432888,-500.0,0.00016438,2]
[351189277,1738403432898,-500.0,0.00016438,2]
[351189278,1738403432907,-500.0,0.00016438,2]
[351189279,1738403432917,-500.0,0.00016438,2]
[351189280,1738403432928,-500.0,0.00016438,2]
[351189282,1738403432938,-500.0,0.00016438,2]
[351189284,1738403432947,-500.0,0.00016438,2]
[351189286,1738403432957,-500.0,0.00016438,2]
[351189288,1738403432966,-500.0,0.00016438,2]
[351189290,1738403432975,-616.07,0.00016438,2]
[351189292,1738403432985,-561.64,0.00016438,2]
[351189294,1738403432994,-500.0,0.00016438,2]
[351189296,1738403433003,-500.0,0.00016438,2]
[351189298,1738403433012,-500.0,0.00016438,2]
[351189300,1738403433022,-602.64,0.00016438,2]
[351189302,1738403433032,-500.0,0.00016438,2]
[351189305,1738403433042,-500.0,0.00016438,2]
[351189308,1738403433053,-500.0,0.00016438,2]
[351189310,1738403433063,-500.0,0.00016438,2]
[351189312,1738403433073,-500.0,0.00016438,2]
[351189314,1738403433083,-192.96652673,0.00016438,2]
[351189316,1738403433093,-231.06408965,0.00016438,2]
[351189318,1738403433103,-548.59,0.00016438,2]
[351189320,1738403433113,-500.0,0.00016438,2]
[351189322,1738403433123,-500.0,0.00016438,2]
[351189324,1738403433133,-500.0,0.00016438,2]
[351189326,1738403433143,-500.0,0.00016438,2]
[351189328,1738403433153,-500.0,0.00016438,2]
[351189330,1738403433163,-500.0,0.00016438,2]
[351189332,1738403433175,-500.0,0.00016438,2]
[351189334,1738403433186,-500.0,0.00016438,2]
[351189336,1738403433196,-500.0,0.00016438,2]
[351189338,1738403433206,-511.54831722,0.00016438,2]
[351189340,1738403433216,-500.0,0.00016438,2]
[351189342,1738403433225,-500.0,0.00016438,2]
[351189344,1738403433235,-509.97596808,0.00016438,2]
[351189346,1738403433249,-500.0,0.00016438,2]
[351189348,1738403433259,-500.0,0.00016438,2]
[351189350,1738403433268,-500.0,0.00016438,2]
[351189352,1738403433278,-500.0,0.00016438,2]
[351189354,1738403433289,-500.0,0.00016438,2]
[351189356,1738403433299,-211.72333737,0.00016438,2]
[351189391,1738403433629,-288.27666263,0.00016438,2]
[351189392,1738403433639,-308.13334037,0.00016438,2]
[351189822,1738403437872,-1191.58774447,0.00014539,2]
[351189825,1738403437884,-3617.80372891,0.00014539,2]
[351189832,1738403437947,-1494.76450675,0.00014539,2]
[351189834,1738403437959,-604.66734499,0.00014539,2]
[351189838,1738403437986,-1274.66804155,0.00014539,2]
[351189840,1738403437997,-330.97588463,0.00014539,2]
[351189842,1738403438008,-657.54944439,0.00014539,2]
[351189844,1738403438020,-307.99330431,0.00014539,2]
[351189846,1738403438029,-191.86665963,0.00016438,2]
[351189848,1738403438039,-500.0,0.00016438,2]
[351189850,1738403438048,-500.0,0.00016438,2]
[351189852,1738403438058,-500.0,0.00016438,2]
[351189854,1738403438067,-500.0,0.00016438,2]
[351189856,1738403438076,-500.0,0.00016438,2]
[351189858,1738403438085,-500.0,0.00016438,2]
[351189860,1738403438095,-68.59171707,0.00016438,2]
[351189863,1738403438113,-431.40828293,0.00016438,2]
[351189865,1738403438122,-176.95700007,0.00016438,2]
[351189867,1738403438133,-323.04299993,0.00016438,2]
[351189869,1738403438143,-500.0,0.00016438,2]
[351189871,1738403438152,-500.0,0.00016438,2]
[351189873,1738403438161,-500.0,0.00016438,2]
[351189875,1738403438170,-500.0,0.00016438,2]
[351189877,1738403438185,-500.0,0.00016438,2]
[351189879,1738403438194,-500.0,0.00016438,2]
[351189881,1738403438203,-500.0,0.00016438,2]
[351189883,1738403438213,-500.0,0.00016438,2]
[351189885,1738403438222,-500.0,0.00016438,2]
[351189887,1738403438231,-500.0,0.00016438,2]
[351189889,1738403438240,-500.0,0.00016438,2]
[351189891,1738403438253,-500.0,0.00016438,2]
[351189893,1738403438262,-500.0,0.00016438,2]
[351189895,1738403438273,-500.0,0.00016438,2]
[351189897,1738403438289,-500.0,0.00016438,2]
[351189899,1738403438302,-500.0,0.00016438,2]
[351189901,1738403438312,-508.14560294,0.00016438,2]
[351189903,1738403438321,-500.0,0.00016438,2]
[351189905,1738403438332,-500.0,0.00016438,2]
[351189907,1738403438342,-500.0,0.00016438,2]
[351189909,1738403438353,-500.0,0.00016438,2]
[351189911,1738403438363,-500.0,0.00016438,2]
[351189913,1738403438372,-500.0,0.00016438,2]
[351189915,1738403438382,-500.0,0.00016438,2]
[351189917,1738403438391,-500.0,0.00016438,2]
[351189919,1738403438399,-500.0,0.00016438,2]
[351189920,1738403438408,-500.0,0.00016438,2]
[351189922,1738403438418,-632.81,0.00016438,2]
[351189924,1738403438431,-500.0,0.00016438,2]
[351189926,1738403438440,-536.26,0.00016438,2]
[351189928,1738403438449,-300.0,0.00016438,2]
[351189930,1738403438458,-500.0,0.00016438,2]
[351189932,1738403438467,-500.0,0.00016438,2]
[351189935,1738403438477,-500.0,0.00016438,2]
[351189938,1738403438487,-500.0,0.00016438,2]
[351189941,1738403438498,-500.0,0.00016438,2]
[351189944,1738403438507,-500.0,0.00016438,2]
[351189947,1738403438517,-500.0,0.00016438,2]
[351189949,1738403438527,-567.71,0.00016438,2]
[351189951,1738403438536,-500.0,0.00016438,2]
[351189953,1738403438546,-500.0,0.00016438,2]
[351189955,1738403438555,-500.0,0.00016438,2]
[351189957,1738403438564,-500.0,0.00016438,2]
[351189959,1738403438574,-500.0,0.00016438,2]
[351189961,1738403438583,-500.0,0.00016438,2]
[351189963,1738403438592,-500.0,0.00016438,2]
[351189965,1738403438601,-526.13,0.00016438,2]
[351189967,1738403438611,-500.0,0.00016438,2]
[351189969,1738403438620,-500.0,0.00016438,2]
[351189971,1738403438629,-500.0,0.00016438,2]
[351189973,1738403438638,-500.0,0.00016438,2]
[351189975,1738403438648,-500.0,0.00016438,2]
[351189977,1738403438657,-500.0,0.00016438,2]
[351189979,1738403438666,-500.0,0.00016438,2]
[351189981,1738403438677,-500.0,0.00016438,2]
[351189983,1738403438687,-500.0,0.00016438,2]
[351189997,1738403438884,-500.0,0.00016438,2]
[351189999,1738403438894,-500.0,0.00016438,2]
[351190001,1738403438904,-500.0,0.00016438,2]
[351190003,1738403438913,-500.0,0.00016438,2]
[351190005,1738403438922,-500.0,0.00016438,2]
[351190007,1738403438932,-364.15638375,0.00016438,2]
[351190009,1738403438941,-85.74501338,0.00016438,2]
[351190012,1738403438966,-298.03433491,0.00016438,2]
[351190014,1738403438975,-500.0,0.00016438,2]
[351190016,1738403438984,-500.0,0.00016438,2]
[351190018,1738403438994,-392.72899294,0.00016438,2]
[351190020,1738403439003,-500.0,0.00016438,2]
[351190022,1738403439013,-602.83987692,0.00016438,2]
[351190024,1738403439022,-500.0,0.00016438,2]
[351190026,1738403439031,-500.0,0.00016438,2]
[351190028,1738403439040,-500.0,0.00016438,2]
[351190030,1738403439049,-500.0,0.00016438,2]
[351190032,1738403439058,-500.0,0.00016438,2]
[351190034,1738403439067,-572.48879884,0.00016438,2]
[351190036,1738403439076,-500.0,0.00016438,2]
[351190038,1738403439086,-500.0,0.00016438,2]
[351190040,1738403439094,-500.0,0.00016438,2]
[351190042,1738403439103,-500.0,0.00016438,2]
[351190044,1738403439112,-647.73,0.00016438,2]
[351190046,1738403439121,-500.0,0.00016438,2]
[351190048,1738403439130,-355.27326744,0.00016438,2]
[351190050,1738403439139,-171.52064563,0.00016438,2]
[351190052,1738403439148,-500.0,0.00016438,2]
[351190053,1738403439158,-500.0,0.00016438,2]
[351190055,1738403439167,-500.0,0.00016438,2]
[351190058,1738403439179,-500.0,0.00016438,2]
[351190060,1738403439188,-500.0,0.00016438,2]
[351190061,1738403439198,-500.0,0.00016438,2]
[351190063,1738403439207,-500.0,0.00016438,2]
[351190065,1738403439216,-384.84938243,0.00016438,2]
[351190067,1738403439226,-578.41,0.00016438,2]
[351190069,1738403439235,-500.0,0.00016438,2]
[351190071,1738403439244,-500.0,0.00016438,2]
[351190073,1738403439257,-579.53237462,0.00016438,2]
[351190075,1738403439266,-500.0,0.00016438,2]
[351190077,1738403439275,-500.0,0.00016438,2]
[351190079,1738403439285,-500.0,0.00016438,2]
[351190081,1738403439295,-500.0,0.00016438,2]
[351190083,1738403439304,-500.0,0.00016438,2]
[351190085,1738403439313,-500.0,0.00016438,2]
[351190087,1738403439323,-515.34429113,0.00016438,2]
[351190089,1738403439333,-442.11037345,0.00016438,2]
[351190091,1738403439343,-500.0,0.00016438,2]
[351190093,1738403439353,-500.0,0.00016438,2]
[351190095,1738403439364,-500.0,0.00016438,2]
[351190097,1738403439373,-500.0,0.00016438,2]
[351190099,1738403439382,-329.74422028,0.00016438,2]
[351190101,1738403439391,-500.0,0.00016438,2]
[351190103,1738403439400,-504.05734614,0.00016438,2]
[351190105,1738403439409,-500.0,0.00016438,2]
[351190107,1738403439419,-236.64951652,0.00016438,2]
[351190109,1738403439430,-500.0,0.00016438,2]
[351190111,1738403439440,-906.62,0.00016438,2]
[351190113,1738403439449,-500.0,0.00016438,2]
[351190115,1738403439458,-500.0,0.00016438,2]
[351190117,1738403439468,-294.56657874,0.00016438,2]
[351190120,1738403439480,-1125.47342126,0.00016438,2]
[351190122,1738403439490,-500.0,0.00016438,2]
[351190124,1738403439500,-500.0,0.00016438,2]
[351190126,1738403439508,-500.0,0.00016438,2]
[351190128,1738403439518,-500.0,0.00016438,2]
[351190130,1738403439528,-500.0,0.00016438,2]
[351190131,1738403439536,-500.0,0.00016438,2]
[351190133,1738403439546,-1616.81227474,0.00016438,2]
[351190312,1738403441328,-134.30772526,0.00016438,2]
[351190314,1738403441338,-500.0,0.00016438,2]
[351190316,1738403441347,-948.01,0.00016438,2]
[351190318,1738403441357,-504.87581513,0.00016438,2]
[351190320,1738403441366,-500.0,0.00016438,2]
[351190322,1738403441375,-372.213847,0.00016438,2]
[351190324,1738403441385,-420.59261361,0.00016438,2]
[351190331,1738403441440,-79.40738639,0.00016438,2]
[351190333,1738403441450,-401.72112394,0.00016438,2]
[351190335,1738403441459,-500.0,0.00016438,2]
[351190337,1738403441467,-403.03617791,0.00016438,2]
[351190339,1738403441479,-96.96382209,0.00016438,2]
[351190341,1738403441488,-449.08273946,0.00016438,2]
[351190353,1738403441595,-50.91726054,0.00016438,2]
[351190355,1738403441604,-255.13848946,0.00016438,2]
[351190360,1738403441643,-697.71151054,0.00016438,2]
[351190362,1738403441652,-204.46880909,0.00016438,2]
[351190505,1738403443028,-51.79606818,0.00016438,2]
[351190507,1738403443037,-200.0,0.00016438,2]
[351190509,1738403443047,-500.0,0.00016438,2]
[351190511,1738403443056,-904.86,0.00016438,2]
[351190513,1738403443065,-395.006414,0.00016438,2]
[351190515,1738403443075,-513.73,0.00016438,2]
[351190517,1738403443085,-854.22,0.00016438,2]
[351190519,1738403443095,-500.0,0.00016438,2]
[351190521,1738403443104,-500.0,0.00016438,2]
[351190523,1738403443113,-500.0,0.00016438,2]
[351190525,1738403443123,-500.0,0.00016438,2]
[351190527,1738403443132,-500.0,0.00016438,2]
[351190529,1738403443142,-500.0,0.00016438,2]
[351190531,1738403443151,-500.0,0.00016438,2]
[351190533,1738403443160,-177.502968,0.00016438,2]
[351190535,1738403443170,-500.0,0.00016438,2]
[351190537,1738403443182,-685.07,0.00016438,2]
[351190539,1738403443191,-389.20490517,0.00016438,2]
[351190541,1738403443200,-1124.19,0.00016438,2]
[351190543,1738403443210,-500.0,0.00016438,2]
[351190545,1738403443219,-1015.41,0.00016438,2]
[351190547,1738403443228,-150.01599172,0.00016438,2]
[351190549,1738403443238,-500.0,0.00016438,2]
[351190551,1738403443251,-500.0,0.00016438,2]
[351190553,1738403443260,-1036.79,0.00016438,2]
[351190555,1738403443269,-1669.8,0.00016438,2]
[351190557,1738403443278,-500.0,0.00016438,2]
[351190559,1738403443287,-500.0,0.00016438,2]
[351190561,1738403443298,-707.71,0.00016438,2]
[351190563,1738403443307,-413.68243393,0.00016438,2]
[351190568,1738403443354,-86.31756607,0.00016438,2]
[351190570,1738403443363,-1429.0,0.00016438,2]
[351190572,1738403443373,-500.0,0.00016438,2]
[351190574,1738403443382,-500.0,0.00016438,2]
[351190576,1738403443392,-1608.64,0.00016438,2]
[351190578,1738403443401,-780.62,0.00016438,2]
[351190580,1738403443410,-500.0,0.00016438,2]
[351190582,1738403443419,-500.0,0.00016438,2]
[351190584,1738403443432,-500.0,0.00016438,2]
[351190586,1738403443441,-2100.18,0.00016438,2]
[351190590,1738403443450,-422.25051393,0.00016438,2]
[351190593,1738403443462,-77.74948607,0.00016438,2]
[351190596,1738403443472,-500.0,0.00016438,2]
[351190599,1738403443481,-500.0,0.00016438,2]
[351190602,1738403443490,-527.85651226,0.00016438,2]
[351190605,1738403443499,-500.0,0.00016438,2]
[351190608,1738403443508,-500.0,0.00016438,2]
[351190611,1738403443518,-500.0,0.00016438,2]
[351190614,1738403443527,-500.0,0.00016438,2]
[351190617,1738403443536,-1303.66,0.00016438,2]
[351190620,1738403443545,-500.0,0.00016438,2]
[351190623,1738403443554,-973.5,0.00016438,2]
[351190625,1738403443563,-500.0,0.00016438,2]
[351190627,1738403443572,-1108.31,0.00016438,2]
[351190628,1738403443582,-500.0,0.00016438,2]
[351190631,1738403443592,-500.0,0.00016438,2]
[351190632,1738403443604,-731.92400167,0.00016438,2]
[351190670,1738403443951,-1165.38599833,0.00016438,2]
[351190672,1738403443960,-563.64,0.00016438,2]
[351190674,1738403443970,-951.58,0.00016438,2]
[351190676,1738403443979,-500.0,0.00016438,2]
[351190678,1738403443988,-579.05,0.00016438,2]
[351190680,1738403443998,-500.0,0.00016438,2]
[351190682,1738403444007,-500.0,0.00016438,2]
[351190684,1738403444018,-496.17789232,0.00016438,2]
[351190686,1738403444027,-740.57170933,0.00016438,2]
[351190697,1738403444120,-1572.98829067,0.00016438,2]
[351190698,1738403444129,-732.51,0.00016438,2]
[351190699,1738403444138,-500.0,0.00016438,2]
[351190711,1738403444310,-500.0,0.00016438,2]
[351190713,1738403444320,-1844.62,0.00016438,2]
[351190715,1738403444330,-500.0,0.00016438,2]
[351190717,1738403444340,-910.63,0.00016438,2]
[351190719,1738403444350,-500.0,0.00016438,2]
[351190721,1738403444359,-500.0,0.00016438,2]
[351190723,1738403444368,-1540.65,0.00016438,2]
[351190725,1738403444377,-500.0,0.00016438,2]
[351190727,1738403444386,-500.0,0.00016438,2]
[351190729,1738403444395,-634.22,0.00016438,2]
[351190731,1738403444405,-1155.56,0.00016438,2]
[351190733,1738403444414,-500.0,0.00016438,2]
[351190735,1738403444423,-639.82660629,0.00016438,2]
[351190737,1738403444434,-654.34,0.00016438,2]
[351190739,1738403444443,-500.0,0.00016438,2]
[351190741,1738403444454,-500.0,0.00016438,2]
[351190743,1738403444463,-981.84,0.00016438,2]
[351190745,1738403444474,-1834.34,0.00016438,2]
[351190747,1738403444483,-666.13,0.00016438,2]
[351190749,1738403444492,-658.17,0.00016438,2]
[351190751,1738403444501,-1820.32,0.00016438,2]
[351190753,1738403444510,-500.0,0.00016438,2]
[351190755,1738403444519,-500.0,0.00016438,2]
[351190757,1738403444529,-500.0,0.00016438,2]
[351190759,1738403444537,-500.0,0.00016438,2]
[351190760,1738403444547,-1195.75,0.00016438,2]
[351190762,1738403444556,-492.56551374,0.00016438,2]
[351190764,1738403444565,-500.0,0.00016438,2]
[351190766,1738403444574,-500.0,0.00016438,2]
[351190768,1738403444583,-758.98,0.00016438,2]
[351190770,1738403444593,-500.0,0.00016438,2]
[351190772,1738403444602,-1136.58,0.00016438,2]
[351190774,1738403444611,-500.0,0.00016438,2]
[351190776,1738403444621,-403.90370081,0.00016438,2]
[351190778,1738403444630,-500.0,0.00016438,2]
[351190780,1738403444640,-500.0,0.00016438,2]
[351190782,1738403444649,-500.0,0.00016438,2]
[351190784,1738403444660,-500.0,0.00016438,2]
[351190786,1738403444669,-761.5,0.00016438,2]
[351190788,1738403444681,-500.0,0.00016438,2]
[351190790,1738403444690,-2985.66,0.00016438,2]
[351190792,1738403444700,-500.0,0.00016438,2]
[351190794,1738403444709,-837.54,0.00016438,2]
[351190796,1738403444719,-500.0,0.00016438,2]
[351190798,1738403444728,-500.0,0.00016438,2]
[351190800,1738403444737,-2347.5,0.00016438,2]
[351190802,1738403444746,-753.45,0.00016438,2]
[351190804,1738403444755,-1497.26,0.00016438,2]
[351190806,1738403444765,-500.0,0.00016438,2]
[351190808,1738403444774,-500.0,0.00016438,2]
[351190810,1738403444784,-500.0,0.00016438,2]
[351190812,1738403444793,-500.0,0.00016438,2]
[351190814,1738403444803,-1856.92,0.00016438,2]
[351190816,1738403444812,-500.0,0.00016438,2]
[351190818,1738403444821,-673.3,0.00016438,2]
[351190820,1738403444833,-500.0,0.00016438,2]
[351190823,1738403444851,-500.0,0.00016438,2]
[351190825,1738403444862,-500.0,0.00016438,2]
[351190827,1738403444872,-500.0,0.00016438,2]
[351190829,1738403444881,-2894.18,0.00016438,2]
[351190831,1738403444892,-500.0,0.00016438,2]
[351190833,1738403444902,-734.89,0.00016438,2]
[351190835,1738403444911,-1073.71,0.00016438,2]
[351190837,1738403444921,-1305.45,0.00016438,2]
[351190839,1738403444931,-500.0,0.00016438,2]
[351190841,1738403444940,-318.42345023,0.00016438,2]
[351190843,1738403444950,-601.62,0.00016438,2]
[351190845,1738403444959,-500.0,0.00016438,2]
[351190847,1738403444968,-1529.22,0.00016438,2]
[351190849,1738403444978,-380.43,0.00016438,2]
[351190851,1738403444987,-48503.6321244,0.00016438,2]
[351190853,1738403444997,-150.0,0.00016513,2]
[351190855,1738403445006,-150.0,0.00016517,2]
[351190857,1738403445015,-150.0,0.00016529,2]
[351190859,1738403445024,-500.0,0.00016546,2]
[351190861,1738403445034,-556.07610711,0.00016546,2]
[351190863,1738403445043,-500.0,0.00016546,2]
[351190865,1738403445052,-330.38630028,0.00016546,2]
[351190867,1738403445064,-500.0,0.00016546,2]
[351190869,1738403445074,-500.0,0.00016546,2]
[351190871,1738403445083,-500.0,0.00016546,2]
[351190873,1738403445092,-517.82,0.00016546,2]
[351190875,1738403445101,-500.0,0.00016546,2]
[351190877,1738403445112,-500.0,0.00016546,2]
[351190879,1738403445121,-500.0,0.00016546,2]
[351190881,1738403445131,-500.0,0.00016546,2]
[351190883,1738403445139,-500.0,0.00016546,2]
[351190885,1738403445149,-500.0,0.00016546,2]
[351190887,1738403445158,-500.0,0.00016546,2]
[351190889,1738403445168,-500.0,0.00016546,2]
[351190891,1738403445177,-550.2,0.00016546,2]
[351190893,1738403445188,-500.0,0.00016546,2]
[351190895,1738403445198,-500.0,0.00016546,2]
[351190897,1738403445207,-500.0,0.00016546,2]
[351190899,1738403445216,-500.0,0.00016546,2]
[351190901,1738403445225,-592.49,0.00016546,2]
[351190903,1738403445234,-500.0,0.00016546,2]
[351190905,1738403445245,-500.0,0.00016546,2]
[351190907,1738403445256,-500.0,0.00016546,2]
[351190909,1738403445265,-532.31,0.00016546,2]
[351190911,1738403445275,-500.0,0.00016546,2]
[351190913,1738403445284,-500.0,0.00016546,2]
[351190915,1738403445295,-500.0,0.00016546,2]
[351190917,1738403445305,-500.0,0.00016546,2]
[351190919,1738403445315,-500.0,0.00016546,2]
[351190921,1738403445325,-500.0,0.00016546,2]
[351190923,1738403445335,-642.27,0.00016546,2]
[351190925,1738403445346,-647.45,0.00016546,2]
[351190927,1738403445355,-2242.1,0.00016546,2]
[351190929,1738403445364,-500.0,0.00016546,2]
[351190931,1738403445374,-500.0,0.00016546,2]
[351190933,1738403445384,-2198.58,0.00016546,2]
[351190935,1738403445393,-537.84,0.00016546,2]
[351190937,1738403445403,-1983.0,0.00016546,2]
[351190939,1738403445413,-500.0,0.00016546,2]
[351190941,1738403445423,-500.0,0.00016546,2]
[351190943,1738403445435,-607.74,0.00016546,2]
[351190945,1738403445444,-1535.72,0.00016546,2]
[351190947,1738403445454,-556.99857119,0.00016546,2]
[351190949,1738403445463,-500.0,0.00016546,2]
[351190951,1738403445473,-500.0,0.00016546,2]
[351190953,1738403445482,-500.0,0.00016546,2]
[351190955,1738403445491,-500.0,0.00016546,2]
[351190957,1738403445501,-500.0,0.00016546,2]
[351190959,1738403445510,-500.0,0.00016546,2]
[351190961,1738403445521,-1045.24589971,0.00016547,2]
[351190963,1738403445530,-500.0,0.00016573,2]
[351190965,1738403445540,-500.0,0.00016573,2]
[351190967,1738403445549,-500.0,0.00016573,2]
[351190969,1738403445558,-500.0,0.00016573,2]
[351190971,1738403445567,-500.0,0.00016573,2]
[351190973,1738403445576,-500.0,0.00016573,2]
[351190975,1738403445585,-500.0,0.00016573,2]
[351190977,1738403445594,-500.0,0.00016573,2]
[351190979,1738403445603,-184.96056218,0.00016573,2]
[351190981,1738403445612,-500.0,0.00016573,2]
[351190983,1738403445622,-577.34,0.00016573,2]
[351190985,1738403445631,-500.0,0.00016573,2]
[351190986,1738403445640,-500.0,0.00016573,2]
[351190987,1738403445650,-500.0,0.00016573,2]
[351190988,1738403445658,-500.0,0.00016573,2]
[351190989,1738403445668,-564.54,0.00016573,2]
[351190990,1738403445676,-500.0,0.00016573,2]
[351190991,1738403445690,-579.27,0.00016573,2]
[351190992,1738403445699,-500.0,0.00016573,2]
[351190994,1738403445708,-500.0,0.00016573,2]
[351190996,1738403445717,-500.0,0.00016573,2]
[351190998,1738403445727,-500.02,0.00016573,2]
[351191000,1738403445737,-500.0,0.00016573,2]
[351191003,1738403445747,-500.0,0.00016573,2]
[351191005,1738403445757,-500.0,0.00016573,2]
[351191008,1738403445766,-563.02,0.00016573,2]
[351191010,1738403445776,-500.0,0.00016573,2]
[351191012,1738403445786,-500.0,0.00016573,2]
[351191014,1738403445796,-500.0,0.00016573,2]
[351191017,1738403445806,-500.0,0.00016573,2]
[351191018,1738403445815,-500.0,0.00016573,2]
[351191020,1738403445824,-500.0,0.00016573,2]
[351191025,1738403445834,-500.0,0.00016573,2]
[351191028,1738403445843,-574.76,0.00016573,2]
[351191031,1738403445853,-500.0,0.00016573,2]
[351191034,1738403445863,-500.0,0.00016573,2]
[351191036,1738403445872,-500.0,0.00016573,2]
[351191038,1738403445882,-500.0,0.00016573,2]
[351191040,1738403445891,-500.0,0.00016573,2]
[351191042,1738403445901,-500.0,0.00016573,2]
[351191044,1738403445910,-500.0,0.00016573,2]
[351191046,1738403445919,-500.0,0.00016573,2]
[351191048,1738403445929,-698.08,0.00016573,2]
[351191050,1738403445942,-500.0,0.00016573,2]
[351191052,1738403445951,-500.0,0.00016573,2]
[351191054,1738403445960,-500.0,0.00016573,2]